[Event "CCT Julius Baer-D2 2024"]
[Site "Online"]
[Date "2024.09.27"]
[Round "1.1"]
[White "Martinez, Jose"]
[Black "Beca95"]
[Result "0-1"]
[ECO "C70"]
[WhiteElo "2734"]
[BlackElo "2616"]
[Annotator "NA"]
[PlyCount "74"]
[EventDate "2024.09.25"]
[EventType "swiss"]
[EventCountry "NET"]
[SourceTitle "playchess.com"]
[Source "ChessBase"]
[SourceQuality "1"]
[TimeControl "600+2"]

1. e4 {[%emt 0:00:02]} e5 {[%emt 0:00:06]} 2. Nf3 {[%emt 0:00:02]} Nc6 {[%emt 0:00:00]} 3. Bb5 {[%emt 0:00:01]} a6 {[%emt 0:00:02]} 4. Ba4 {[%emt 0:00:02]} Bc5 {[%emt 0:00:00]} 5. c3 {[%emt 0:00:01]} Nge7 {[%emt 0:00:05]} 6. d4 {[%emt 0:00:01]} exd4 {[%emt 0:00:02]} 7. cxd4 {[%emt 0:00:01]} Bb4+ {[%emt 0:00:00]} 8. Bd2 {[%emt 0:00:16]} Bxd2+ {[%emt 0:00:03]} 9. Nbxd2 {[%emt 0:00:01]} d5 {[%emt 0:00:01]} 10. e5 {[%emt 0:00:06]} O-O {[%emt 0:00:02]} 11. O-O {[%emt 0:00:02]} f6 {[%emt 0:00:01]} 12. Re1 {[%emt 0:00:10]} fxe5 {[%emt 0:00:03]} 13. dxe5 {[%emt 0:00:01]} Bg4 {[%emt 0:00:06]} 14. Bxc6 {[%emt 0:00:14]} Nxc6 {[%emt 0:00:02]} 15. Qb3 {[%emt 0:00:00]} Rb8 {[%emt 0:00:08]} 16. Rac1 {[%emt 0:00:03]} Kh8 {[%emt 0:00:05]} 17. h3 {[%emt 0:00:14]} Be6 {[%emt 0:00:03]} 18. Qa3 {[%emt 0:00:31]} Rf4 {[%emt 0:00:08]} 19. Qe3 {[%emt 0:00:10]} Qf8 {[%emt 0:00:30]} 20. Nb3 {[%emt 0:02:36]} Bxh3 {[%emt 0:01:20]} 21. Nfd4 {[%emt 0:00:17]} Bd7 {[%emt 0:00:24]} 22. e6 {[%emt 0:00:27]} Be8 {[%emt 0:00:02]} 23. Nxc6 {[%emt 0:00:47]} bxc6 {[%emt 0:00:03]} 24. Qe5 {[%emt 0:00:20]} Qd6 {[%emt 0:00:06]} 25. Qg5 {[%emt 0:01:05]} h6 {[%emt 0:00:24]} 26. Qg3 {[%emt 0:00:01]} Rf6 {[%emt 0:00:02]} 27. Qe3 {[%emt 0:00:19]} Rb4 {[%emt 0:00:19]} 28. f3 {[%emt 0:00:37]} Rh4 {[%emt 0:00:03]} 29. Qe5 {[%emt 0:00:01]} Rh5 {[%emt 0:01:26]} 30. Qxd6 {[%emt 0:00:02]} cxd6 {[%emt 0:00:00]} 31. Na5 {[%emt 0:00:02]} Re5 {[%emt 0:00:04]} 32. e7 {[%emt 0:00:34]} Rfe6 {[%emt 0:00:13]} 33. Red1 {[%emt 0:00:01]} c5 {[%emt 0:00:16]} 34. Nb7 {[%emt 0:00:01]} d4 {[%emt 0:00:30]} 35. b4 {[%emt 0:00:07]} Rxe7 {[%emt 0:00:10]} 36. Nxd6 {[%emt 0:00:01]} Ba4 {[%emt 0:00:02]} 37. Rd2 {[%emt 0:00:10]} Re2 {[%emt 0:00:16]} 0-1

[Event "CCT Julius Baer-D2 2024"]
[Site "Online"]
[Date "2024.09.27"]
[Round "1.1"]
[White "Le, Tuan Minh"]
[Black "Sargsyan_Shant"]
[Result "0-1"]
[ECO "D38"]
[WhiteElo "2726"]
[BlackElo "2664"]
[Annotator "RC"]
[PlyCount "120"]
[EventDate "2024.09.25"]
[EventType "swiss"]
[EventCountry "NET"]
[SourceTitle "playchess.com"]
[Source "ChessBase"]
[SourceQuality "1"]
[TimeControl "600+2"]

1. d4 {[%emt 0:00:03]} d5 {[%emt 0:00:03]} 2. c4 {[%emt 0:00:03]} e6 {[%emt 0:00:01]} 3. Nf3 {[%emt 0:00:02]} Nf6 {[%emt 0:00:01]} 4. Nc3 {[%emt 0:00:02]} Bb4 {[%emt 0:00:01]} 5. Qa4+ {[%emt 0:00:01]} Nc6 {[%emt 0:00:01]} 6. e3 {[%emt 0:00:03]} O-O {[%emt 0:00:02]} 7. Qc2 {[%emt 0:00:01]} Na5 {[%emt 0:00:02]} 8. cxd5 {[%emt 0:00:14]} exd5 {[%emt 0:00:00]} 9. Bd3 {[%emt 0:00:01]} Bg4 {[%emt 0:00:08]} 10. O-O {[%emt 0:00:16]} Bxf3 {[%emt 0:00:01]} 11. gxf3 {[%emt 0:00:02]} c5 {[%emt 0:00:01]} 12. dxc5 {[%emt 0:00:30]} Bxc5 {[%emt 0:00:01]} 13. Kh1 {[%emt 0:00:26]} Rc8 {[%emt 0:00:12]} 14. Qe2 {[%emt 0:00:02]} Re8 {[%emt 0:00:13]} 15. Rg1 {[%emt 0:00:14]} Nc6 {[%emt 0:00:11]} 16. Bd2 {[%emt 0:00:09]} g6 {[%emt 0:00:24]} 17. Rac1 {[%emt 0:01:04]} Bf8 {[%emt 0:00:03]} 18. Qf1 {[%emt 0:00:33]} Bg7 {[%emt 0:00:29]} 19. Ne2 {[%emt 0:00:19]} Ne5 {[%emt 0:00:20]} 20. Rxc8 {[%emt 0:00:06]} Qxc8 {[%emt 0:00:02]} 21. Nd4 {[%emt 0:00:00]} Nxd3 {[%emt 0:00:57]} 22. Qxd3 {[%emt 0:00:00]} Nh5 {[%emt 0:00:03]} 23. Bc3 {[%emt 0:00:06]} Qh3 {[%emt 0:00:05]} 24. Qf1 {[%emt 0:00:02]} Qd7 {[%emt 0:01:05]} 25. Qb5 {[%emt 0:00:03]} Qxb5 {[%emt 0:00:08]} 26. Nxb5 {[%emt 0:00:01]} a6 {[%emt 0:00:02]} 27. Nc7 {[%emt 0:01:06]} Rd8 {[%emt 0:00:03]} 28. Rd1 {[%emt 0:00:01]} d4 {[%emt 0:00:07]} 29. exd4 {[%emt 0:01:17]} Be5 {[%emt 0:01:25]} 30. Na8 {[%emt 0:00:02]} Nf4 {[%emt 0:00:02]} 31. Nb6 {[%emt 0:00:34]} Ne2 {[%emt 0:00:58]} 32. Re1 {[%emt 0:00:19]} Bxd4 {[%emt 0:00:02]} 33. Rxe2 {[%emt 0:00:01]} Bxb6 {[%emt 0:00:01]} 34. Re7 {[%emt 0:00:01]} Bxf2 {[%emt 0:00:09]} 35. Rxb7 {[%emt 0:00:01]} Bd4 {[%emt 0:00:02]} 36. Ba5 {[%emt 0:00:25]} Rd5 {[%emt 0:00:13]} 37. b4 {[%emt 0:00:19]} Rg5 {[%emt 0:00:23]} 38. h4 {[%emt 0:00:03]} Rg1+ {[%emt 0:00:01]} 39. Kh2 {[%emt 0:00:01]} Ra1 {[%emt 0:00:00]} 40. Rb8+ {[%emt 0:00:03]} Kg7 {[%emt 0:00:02]} 41. Ra8 {[%emt 0:00:00]} Be5+ {[%emt 0:00:13]} 42. Kg2 {[%emt 0:00:45]} Rxa2+ {[%emt 0:00:01]} 43. Kf1 {[%emt 0:00:01]} Bd6 {[%emt 0:00:22]} 44. Bb6 {[%emt 0:00:33]} Be5 {[%emt 0:00:35]} 45. Bc5 {[%emt 0:00:13]} h5 {[%emt 0:00:11]} 46. Ra7 {[%emt 0:00:03]} Kf6 {[%emt 0:00:09]} 47. Be3 {[%emt 0:00:27]} Ra4 {[%emt 0:00:27]} 48. Bc5 {[%emt 0:00:08]} Kg7 {[%emt 0:00:23]} 49. Ke2 {[%emt 0:00:04]} Bf6 {[%emt 0:00:11]} 50. Kd3 {[%emt 0:00:12]} Bxh4 {[%emt 0:00:01]} 51. Kc4 {[%emt 0:00:09]} Bf6 {[%emt 0:00:01]} 52. Kb3 {[%emt 0:00:01]} Ra1 {[%emt 0:00:00]} 53. Rb7 {[%emt 0:00:06]} h4 {[%emt 0:00:06]} 54. Rb6 {[%emt 0:00:02]} h3 {[%emt 0:00:06]} 55. Bd6 {[%emt 0:00:00]} a5 {[%emt 0:00:30]} 56. b5 {[%emt 0:00:04]} a4+ {[%emt 0:00:00]} 57. Kc2 {[%emt 0:00:02]} h2 {[%emt 0:00:05]} 58. Bxh2 {[%emt 0:00:01]} Ra2+ {[%emt 0:00:00]} 59. Kd3 {[%emt 0:00:01]} Rxh2 {[%emt 0:00:00]} 60. Ra6 {[%emt 0:00:01]} Rh4 {[%emt 0:00:08]} 0-1

[Event "CCT Julius Baer-D2 2024"]
[Site "Online"]
[Date "2024.09.27"]
[Round "1.1"]
[White "Vidit, Santosh Gujrathi"]
[Black "Robson, Ray"]
[Result "1/2-1/2"]
[ECO "B89"]
[WhiteElo "2720"]
[BlackElo "2700"]
[Annotator "TA"]
[PlyCount "159"]
[EventDate "2024.09.25"]
[EventType "swiss"]
[EventCountry "NET"]
[SourceTitle "playchess.com"]
[Source "ChessBase"]
[SourceQuality "1"]
[TimeControl "600+2"]

{[%evp 22,159,28,15,25,25,28,25,79,90,101,103,91,99,103,90,262,266,277,248,412,411,479,392,421,401,427,412,397,421,387,323,361,360,351,351,361,342,326,337,327,193,704,176,719,719,627,708,719,704,672,575,554,240,233,219,197,203,201,147,136,72,151,0,187,157,145,95,192,188,226,238,29976,7,8,8,20,0,0,0,0,0,148,148,141,0,0,0,0,0,0,0,0,0,0,0,0,0,0,0,0,0,0,0,0,0,0,-8,-8,-8,-8,-8,-8,-8,-8,-8,-8,-8,-8,-8,-8,-8,0,-8,0,-8,-8,-8,-8,-8,-8,-8,-8,-8,-8,-8,-8,-8,0,-8]} 1. e4 {[%emt 0:00:05]} c5 {[%emt 0:00:31]} 2. Nf3 {[%emt 0:00:02]} d6 {[%emt 0:00:01]} 3. d4 {[%emt 0:00:05]} cxd4 {[%emt 0:00:01]} 4. Nxd4 {[%emt 0:00:00]} Nf6 {[%emt 0:00:00]} 5. Nc3 {[%emt 0:00:01]} a6 {[%emt 0:00:01]} 6. Bc4 {[%emt 0:00:06]} e6 {[%emt 0:00:01]} 7. Be3 {[%emt 0:00:01]} b5 {[%emt 0:00:08]} 8. Bb3 {[%emt 0:00:01]} Bb7 {[%emt 0:00:14]} 9. Qe2 {[%emt 0:00:02]} Nc6 {[%emt 0:00:44]} 10. O-O-O {[%emt 0:00:15]} Na5 {[%emt 0:00:10]} 11. e5 {[%emt 0:00:54]} Nxb3+ {[%emt 0:00:31]} 12. axb3 {[%emt 0:00:03]} Nd5 {[%emt 0:02:28]} (12... dxe5 $2 13. Nxe6 Qe7 14. Nc5 $18) 13. Nxd5 {[%emt 0:00:02]} Bxd5 {[%emt 0:00:01]} 14. Bf4 {[%emt 0:00:01]} g6 {[%emt 0:01:46]} (14... dxe5 $1 $11 {keeps the balance.} 15. Bxe5 (15. Qxe5 Qf6 $11) 15... Qg5+ 16. f4 Qxg2 17. Qxg2 Bxg2) 15. Kb1 $16 {[%emt 0:01:33]} Bg7 {[%emt 0:00:31]} 16. exd6 {[%emt 0:00:12] c4 is the strong threat.} O-O {[%emt 0:00:03][%cal Od8d7]} 17. Be5 {[%emt 0:03:21]} f6 {[%emt 0:00:03]} 18. Bg3 {[%emt 0:00:08] White is much more active.} e5 {[%emt 0:00:04] [#]} (18... Re8 $16) 19. Nf5 $1 $18 {[%emt 0:00:09][%mdl 512]} Bxg2 {[%emt 0:00:02]} 20. Ne7+ {[%emt 0:00:24]} Kf7 $2 {[%emt 0:00:38]} (20... Kh8) 21. Rhg1 {[%emt 0:00:14]} Bb7 {[%emt 0:00:46]} 22. h4 {[%emt 0:00:08]} Re8 {[%emt 0:00:15]} 23. h5 {[%emt 0:00:10]} Rxe7 {[%emt 0:00:02]} 24. dxe7 {[%emt 0:00:04]} Qxe7 {[%emt 0:00:01]} 25. hxg6+ {[%emt 0:00:10]} hxg6 {[%emt 0:00:01]} 26. Bh4 {[%emt 0:00:02] aiming for Qg4.} g5 {[%emt 0:00:48][%cal Oa8h8]} 27. Qh5+ {[%emt 0:00:02]} Kg8 {[%emt 0:00:19] [#]} 28. Bxg5 {[%emt 0:00:50][%mdl 512]} fxg5 {[%emt 0:00:02]} 29. Rxg5 {[%emt 0:00:01]} Rf8 {[%emt 0:00:17][%cal Ob7f3]} 30. Rdg1 {[%emt 0:00:04][%csl LRe5,LRg7] Threatens to win with Qh6.} Rf7 {[%emt 0:00:03]} 31. Qh6 {[%emt 0:00:25]} (31. Rxe5 Bf3 32. Qh2 Qf6 $16) (31. R1g3 $142 {Hoping for Rh3.} Qf6 32. Rg6 (32. Rxe5 Kf8 $14)) 31... Bf3 $2 {[%emt 0:00:23]} (31... Qd7 32. Qh4 (32. Rxe5 Qd1+ 33. Rxd1 Bxh6 $11) 32... Qc7) 32. Qxa6 $2 {[%emt 0:00:01]} (32. R1g3) 32... e4 $2 {[%emt 0:00:09]} (32... Qd7 33. Rxe5 Rf5 34. Rxf5 Qxf5) 33. Qc8+ {[%emt 0:00:09]} (33. Rxb5 Qf6 34. Qc8+ Rf8 35. Qc4+ Rf7 36. Rb8+ Kh7 $11) 33... Qf8 {[%emt 0:00:02]} 34. Qe6 {[%emt 0:00:07]} Kh8 {[%emt 0:00:01]} 35. R5g3 {[%emt 0:00:16]} Rf6 {[%emt 0:00:02]} 36. Qd7 {[%emt 0:00:49]} Bh6 {[%emt 0:00:03]} 37. Qd5 {[%emt 0:00:03]} (37. Qd4 $142 {[%cal Og3g8] Rg8+! would now be deadly.} Kh7 38. Rg8 (38. Qd7+ Qf7 $18)) 37... Qf7 {[%emt 0:00:02]} 38. Rg8+ {[%emt 0:00:03]} Kh7 {[%emt 0:00:01]} 39. Qd8 $40 {[%emt 0:00:02][%csl Gd8][%cal Rg8h8][%mdl 128] White has strong attack.} (39. Qxb5 Rf5 (39... Qxg8 40. Rxg8 Kxg8 41. b4 $14) 40. Qb6 Bf4 $18) 39... Bf8 {[%emt 0:00:02]} 40. R8g3 {[%emt 0:00:04]} Rh6 {[%emt 0:00:01]} 41. Qd4 {[%emt 0:00:09]} ({White should try} 41. Rg5 $1) 41... Rh5 {[%emt 0:00:04]} (41... b4 $142 42. Qe5 Rf6) 42. Rg5 $2 {[%emt 0:00:03]} (42. b4 $16) 42... Rh6 $2 {[%emt 0:00:02]} (42... Rxg5 $1 $11 {and Black stays safe.} 43. Rxg5 b4) 43. Rxb5 {[%emt 0:00:02]} Bg7 {[%emt 0:00:01] Prevents Rbg5} 44. Qe3 {[%emt 0:00:02]} (44. Qd2 $142) 44... Qf6 {[%emt 0:00:01]} (44... Ra6 $16 {was necessary.}) 45. c3 {[%emt 0:00:02] Black must now prevent Rbg5.} Qf7 {[%emt 0:00:01]} 46. Ra5 {[%emt 0:00:01]} Qxb3 $2 {[%emt 0:00:04]} (46... Rc6 $18 47. b4 Rd6) 47. Ra7 $2 {[%emt 0:00:02]} (47. Rxg7+ {mates} Kxg7 48. Ra7+ Qf7 49. Rxf7+ Kxf7 50. Qxh6 Ke7 51. c4 Kf7 52. c5) 47... Rg6 $11 {[%emt 0:00:01]} 48. Rxg6 {[%emt 0:00:05]} Kxg6 {[%emt 0:00:00]} 49. Qd2 {[%emt 0:00:02] Chess con chili.} Qe6 {[%emt 0:00:05] Repels Qd6} 50. Rd7 {[%emt 0:00:01]} Be5 {[%emt 0:00:02] Prevents Rd6.} 51. Rd8 {[%emt 0:00:01]} e3 {[%emt 0:00:02] [#]} 52. Qd3+ $1 $16 {[%emt 0:00:02]} (52. fxe3 Be4+ 53. Kc1 Qa6 $19) 52... Kf7 {[%emt 0:00:02] [#]} 53. fxe3 {[%emt 0:00:02]} (53. Qxe3 Qg6+ 54. Ka1 Qa6+ 55. Kb1 Qg6+ 56. Rd3 Bd5 $15) ({White must play} 53. Qh7+ $1 $16 Bg7 54. Qg8+ Kf6 55. Qxe6+ Kxe6 56. Re8+ (56. fxe3 Bh6 $16) 56... Kd7 57. Rxe3) 53... Ke7 $11 {[%emt 0:00:02] The position is equal.} 54. Rd4 {[%emt 0:00:05]} Bxd4 {[%emt 0:00:01]} 55. Qxd4 {[%emt 0:00:01]} Be4+ {[%emt 0:00:02]} 56. Kc1 {[%emt 0:00:00]} Bd5 {[%emt 0:00:02]} 57. Kd2 {[%emt 0:00:01]} Qf5 {[%emt 0:00:02]} 58. Qf4 {[%emt 0:00:01]} Qe6 {[%emt 0:00:02]} 59. Qg5+ {[%emt 0:00:03]} Kd7 {[%emt 0:00:01]} 60. Qf4 {[%emt 0:00:00]} Kc6 {[%emt 0:00:01]} 61. Qa4+ {[%emt 0:00:01]} Kc7 {[%emt 0:00:03]} 62. Qd4 {[%emt 0:00:01]} Kb7 {[%emt 0:00:03]} 63. Kd3 {[%emt 0:00:02]} Qf5+ {[%emt 0:00:02]} 64. e4 {[%emt 0:00:04]} Qf3+ {[%emt 0:00:01]} 65. Qe3 {[%emt 0:00:02]} Qd1+ {[%emt 0:00:02]} (65... Bxe4+ 66. Kd4 Qxe3+ 67. Kxe3) 66. Qd2 {[%emt 0:00:02] [#]} Bxe4+ $1 {[%emt 0:00:04]} 67. Ke3 $1 {[%emt 0:00:01]} Qf3+ {[%emt 0:00:02]} 68. Kd4 {[%emt 0:00:00]} Qg4 {[%emt 0:00:03][%cal Oe4d5] ( -> ...Bd5+!)} 69. Ke3 {[%emt 0:00:03]} Qg5+ {[%emt 0:00:01]} 70. Ke2 {[%emt 0:00:01] [#]} Bf3+ $1 {[%emt 0:00:01]} 71. Kd3 $1 {[%emt 0:00:02]} Be4+ {[%emt 0:00:01]} 72. Ke2 $1 {[%emt 0:00:01]} Bf3+ {[%emt 0:00:03]} 73. Kd3 $1 {[%emt 0:00:01]} Qf5+ {[%emt 0:00:02]} 74. Ke3 {[%emt 0:00:01]} Qe4+ {[%emt 0:00:02]} 75. Kf2 {[%emt 0:00:01]} Bg4 {[%emt 0:00:01]} 76. Qe3 {[%emt 0:00:02]} Qc6 {[%emt 0:00:03]} 77. b4 {[%emt 0:00:01]} Bd7 {[%emt 0:00:02]} 78. Qf3 {[%emt 0:00:01]} Kb6 {[%emt 0:00:00]} 79. Qxc6+ {[%emt 0:00:01]} Bxc6 {[%emt 0:00:01]} 80. Ke3 {[%emt 0:00:00] Weighted Error Value: White=0.54/Black=0.40.  Loses game:     	---       	Black=2      Missed win:     	White=1     	---        Mistake:       	White=6     	Black=8      OK:         	White=20    	Black=12     Best:        	White=7     	Black=10     Strong:       	White=5     	---        Brilliant:      	White=2     	---} 1/2-1/2

[Event "CCT Julius Baer-D2 2024"]
[Site "Online"]
[Date "2024.09.27"]
[Round "1.1"]
[White "Vidit, Santosh Gujrathi"]
[Black "spicycaterpillar"]
[Result "1/2-1/2"]
[ECO "B89"]
[WhiteElo "2694"]
[BlackElo "2696"]
[Annotator "ChessBase"]
[PlyCount "159"]
[EventDate "2024.09.25"]
[EventType "swiss"]
[EventCountry "NET"]
[SourceTitle "playchess.com"]
[Source "ChessBase"]
[SourceQuality "1"]
[TimeControl "600+2"]

1. e4 {[%emt 0:00:05]} c5 {[%emt 0:00:31]} 2. Nf3 {[%emt 0:00:02]} d6 {[%emt 0:00:01]} 3. d4 {[%emt 0:00:05]} cxd4 {[%emt 0:00:01]} 4. Nxd4 {[%emt 0:00:00]} Nf6 {[%emt 0:00:00]} 5. Nc3 {[%emt 0:00:01]} a6 {[%emt 0:00:01]} 6. Bc4 {[%emt 0:00:06]} e6 {[%emt 0:00:01]} 7. Be3 {[%emt 0:00:01]} b5 {[%emt 0:00:08]} 8. Bb3 {[%emt 0:00:01]} Bb7 {[%emt 0:00:14]} 9. Qe2 {[%emt 0:00:02]} Nc6 {[%emt 0:00:44]} 10. O-O-O {[%emt 0:00:15]} Na5 {[%emt 0:00:10]} 11. e5 {[%emt 0:00:54]} Nxb3+ {[%emt 0:00:31]} 12. axb3 {[%emt 0:00:03]} Nd5 {[%emt 0:02:28]} 13. Nxd5 {[%emt 0:00:02]} Bxd5 {[%emt 0:00:01]} 14. Bf4 {[%emt 0:00:01]} g6 {[%emt 0:01:46]} 15. Kb1 {[%emt 0:01:33]} Bg7 {[%emt 0:00:31]} 16. exd6 {[%emt 0:00:12]} O-O {[%emt 0:00:03]} 17. Be5 {[%emt 0:03:21]} f6 {[%emt 0:00:03]} 18. Bg3 {[%emt 0:00:08]} e5 {[%emt 0:00:04]} 19. Nf5 {[%emt 0:00:09]} Bxg2 {[%emt 0:00:02]} 20. Ne7+ {[%emt 0:00:24]} Kf7 {[%emt 0:00:38]} 21. Rhg1 {[%emt 0:00:14]} Bb7 {[%emt 0:00:46]} 22. h4 {[%emt 0:00:08]} Re8 {[%emt 0:00:15]} 23. h5 {[%emt 0:00:10]} Rxe7 {[%emt 0:00:02]} 24. dxe7 {[%emt 0:00:04]} Qxe7 {[%emt 0:00:01]} 25. hxg6+ {[%emt 0:00:10]} hxg6 {[%emt 0:00:01]} 26. Bh4 {[%emt 0:00:02]} g5 {[%emt 0:00:48]} 27. Qh5+ {[%emt 0:00:02]} Kg8 {[%emt 0:00:19]} 28. Bxg5 {[%emt 0:00:50]} fxg5 {[%emt 0:00:02]} 29. Rxg5 {[%emt 0:00:01]} Rf8 {[%emt 0:00:17]} 30. Rdg1 {[%emt 0:00:04]} Rf7 {[%emt 0:00:03]} 31. Qh6 {[%emt 0:00:25]} Bf3 {[%emt 0:00:23]} 32. Qxa6 {[%emt 0:00:01]} e4 {[%emt 0:00:09]} 33. Qc8+ {[%emt 0:00:09]} Qf8 {[%emt 0:00:02]} 34. Qe6 {[%emt 0:00:07]} Kh8 {[%emt 0:00:01]} 35. R5g3 {[%emt 0:00:16]} Rf6 {[%emt 0:00:02]} 36. Qd7 {[%emt 0:00:49]} Bh6 {[%emt 0:00:03]} 37. Qd5 {[%emt 0:00:03]} Qf7 {[%emt 0:00:02]} 38. Rg8+ {[%emt 0:00:03]} Kh7 {[%emt 0:00:01]} 39. Qd8 {[%emt 0:00:02]} Bf8 {[%emt 0:00:02]} 40. R8g3 {[%emt 0:00:04]} Rh6 {[%emt 0:00:01]} 41. Qd4 {[%emt 0:00:09]} Rh5 {[%emt 0:00:04]} 42. Rg5 {[%emt 0:00:03]} Rh6 {[%emt 0:00:02]} 43. Rxb5 {[%emt 0:00:02]} Bg7 {[%emt 0:00:01]} 44. Qe3 {[%emt 0:00:02]} Qf6 {[%emt 0:00:01]} 45. c3 {[%emt 0:00:02]} Qf7 {[%emt 0:00:01]} 46. Ra5 {[%emt 0:00:01]} Qxb3 {[%emt 0:00:04]} 47. Ra7 {[%emt 0:00:02]} Rg6 {[%emt 0:00:01]} 48. Rxg6 {[%emt 0:00:05]} Kxg6 {[%emt 0:00:00]} 49. Qd2 {[%emt 0:00:02]} Qe6 {[%emt 0:00:05]} 50. Rd7 {[%emt 0:00:01]} Be5 {[%emt 0:00:02]} 51. Rd8 {[%emt 0:00:01]} e3 {[%emt 0:00:02]} 52. Qd3+ {[%emt 0:00:02]} Kf7 {[%emt 0:00:02]} 53. fxe3 {[%emt 0:00:02]} Ke7 {[%emt 0:00:02]} 54. Rd4 {[%emt 0:00:05]} Bxd4 {[%emt 0:00:01]} 55. Qxd4 {[%emt 0:00:01]} Be4+ {[%emt 0:00:02]} 56. Kc1 {[%emt 0:00:00]} Bd5 {[%emt 0:00:02]} 57. Kd2 {[%emt 0:00:01]} Qf5 {[%emt 0:00:02]} 58. Qf4 {[%emt 0:00:01]} Qe6 {[%emt 0:00:02]} 59. Qg5+ {[%emt 0:00:03]} Kd7 {[%emt 0:00:01]} 60. Qf4 {[%emt 0:00:00]} Kc6 {[%emt 0:00:01]} 61. Qa4+ {[%emt 0:00:01]} Kc7 {[%emt 0:00:03]} 62. Qd4 {[%emt 0:00:01]} Kb7 {[%emt 0:00:03]} 63. Kd3 {[%emt 0:00:02]} Qf5+ {[%emt 0:00:02]} 64. e4 {[%emt 0:00:04]} Qf3+ {[%emt 0:00:01]} 65. Qe3 {[%emt 0:00:02]} Qd1+ {[%emt 0:00:02]} 66. Qd2 {[%emt 0:00:02]} Bxe4+ {[%emt 0:00:04]} 67. Ke3 {[%emt 0:00:01]} Qf3+ {[%emt 0:00:02]} 68. Kd4 {[%emt 0:00:00]} Qg4 {[%emt 0:00:03]} 69. Ke3 {[%emt 0:00:03]} Qg5+ {[%emt 0:00:01]} 70. Ke2 {[%emt 0:00:01]} Bf3+ {[%emt 0:00:01]} 71. Kd3 {[%emt 0:00:02]} Be4+ {[%emt 0:00:01]} 72. Ke2 {[%emt 0:00:01]} Bf3+ {[%emt 0:00:03]} 73. Kd3 {[%emt 0:00:01]} Qf5+ {[%emt 0:00:02]} 74. Ke3 {[%emt 0:00:01]} Qe4+ {[%emt 0:00:02]} 75. Kf2 {[%emt 0:00:01]} Bg4 {[%emt 0:00:01]} 76. Qe3 {[%emt 0:00:02]} Qc6 {[%emt 0:00:03]} 77. b4 {[%emt 0:00:01]} Bd7 {[%emt 0:00:02]} 78. Qf3 {[%emt 0:00:01]} Kb6 {[%emt 0:00:00]} 79. Qxc6+ {[%emt 0:00:01]} Bxc6 {[%emt 0:00:01]} 80. Ke3 {[%emt 0:00:00]} 1/2-1/2